bitfinex/quotes_ETHUSD_20241103
["timestamp","ask_amount","ask_price","bid_price","bid_amount"]
[1730641155035,0.06078414,2446.4,2446.3,4.08769]
[1730641155340,0.06078414,2446.4,2446.1,4.08803]
[1730641155341,8.22588414,2446.4,2446.1,8.17604]
[1730641155541,9.03318414,2446.4,2446.1,8.17604]
[1730641155904,9.03318414,2446.4,2446.1,8.17606]
[1730641156100,9.03318414,2446.4,2446.1,4.08801]
[1730641156502,10.81574587,2446.4,2446.0,3.0]
[1730641156709,5.0,2446.3,2445.8,4.08863]
[1730641156957,0.8073,2446.1,2445.7,4.08871]
[1730641157105,8.1651,2446.0,2445.6,4.09395]
[1730641157305,0.0604633,2445.9,2445.6,4.09395]
[1730641157506,8.9724,2445.8,2445.6,4.09393]
[1730641157804,0.06033569,2445.7,2445.6,0.005]
[1730641158114,8.1651,2445.7,2445.6,0.005]
[1730641158317,8.22542796,2445.7,2445.6,0.005]
[1730641158799,9.03272796,2445.7,2445.6,0.005]
[1730641159054,15.02399339,2445.7,2445.6,0.005]
[1730641160846,18.04399339,2445.7,2445.6,0.005]
[1730641161349,9.89661,2445.4,2445.3,0.0157092]
[1730641161644,18.12167813,2445.4,2445.3,0.0157092]
[1730641162659,14.03236813,2445.4,2445.3,0.0157092]
[1730641162949,15.84552094,2445.4,2445.3,0.0157092]
[1730641164153,19.93483094,2445.4,2445.3,0.0157092]
[1730641164456,19.93483094,2445.4,2445.0,4.0606592]
[1730641164457,15.84552094,2445.4,2445.0,4.0606592]
[1730641164657,19.93483094,2445.4,2444.9,4.09506]
[1730641164953,2.40339909,2445.3,2444.9,4.09506]
[1730641165114,8.22451877,2445.2,2444.9,4.09506]
[1730641165314,8.22451877,2445.2,2445.0,4.08993]
[1730641166156,8.22451877,2445.2,2445.1,4.63981]
[1730641166315,7.37128446,2445.2,2445.1,4.63981]
[1730641166510,5.8545234,2445.2,2445.1,5.513288]
[1730641166741,5.84703968,2445.2,2445.1,9.295088]
[1730641166910,5.84703968,2445.2,2445.1,4.63981]
[1730641167308,5.84703968,2445.2,2445.0,4.08997]
[1730641167507,5.84703968,2445.2,2445.0,4.03986]
[1730641168669,5.84703968,2445.2,2445.1,4.08981]
[1730641169014,5.84703968,2445.2,2445.1,4.63981]
[1730641169215,5.84607076,2445.2,2445.1,5.586457]
[1730641169522,5.84607076,2445.2,2445.1,8.586457]
[1730641171640,5.84607076,2445.2,2445.1,8.536457]
[1730641173567,5.84607076,2445.2,2445.1,9.363957]
[1730641173722,0.8032,2446.2,2446.1,4.08814]
[1730641173926,0.05542731,2446.2,2446.1,4.08814]
[1730641174268,0.8032,2446.4,2446.1,4.08814]
[1730641174761,0.05560186,2446.3,2446.1,4.08814]
[1730641176143,0.05560186,2446.3,2446.2,4.08797]
[1730641176364,5.0,2446.5,2446.4,4.08763]
[1730641176576,0.05571045,2446.5,2446.4,4.08763]
[1730641176963,0.05571045,2446.5,2446.4,4.63763]
[1730641177161,5.8032,2446.8,2446.4,4.08763]
[1730641177348,0.05581126,2446.7,2446.4,4.08763]
[1730641177579,7.292195,2446.8,2446.5,4.08744]
[1730641177786,8.1748,2446.6,2446.5,4.08744]
[1730641178183,8.23061126,2446.6,2446.5,4.08744]
[1730641179519,8.23061126,2446.6,2446.4,4.08762]
[1730641180007,8.23061126,2446.6,2446.4,8.17524]
[1730641180211,8.23061126,2446.6,2446.5,4.08747]
[1730641181175,8.23061126,2446.6,2446.4,4.08762]
[1730641181370,8.23061126,2446.6,2446.5,4.08747]
[1730641181816,8.23061126,2446.6,2446.4,4.0876]
[1730641182485,8.23061126,2446.6,2446.4,8.1752]
[1730641182688,8.23061126,2446.6,2446.4,4.0876]
[1730641183080,8.23061126,2446.6,2446.4,8.17512]
[1730641183610,8.23061126,2446.6,2446.5,4.08747]
[1730641184214,8.23061126,2446.6,2446.5,4.86337]
[1730641185253,8.23061126,2446.6,2446.5,4.08747]
[1730641185554,9.81927239,2446.6,2446.3,8.17545]
[1730641185722,9.81927239,2446.6,2446.3,4.08771]
[1730641185927,9.81927239,2446.6,2446.4,4.08763]
[1730641186159,9.81927239,2446.6,2446.3,4.08771]
[1730641186460,9.05367239,2446.6,2446.5,4.08747]
[1730641186748,8.23061126,2446.6,2446.5,4.08747]
[1730641186958,8.23061126,2446.6,2446.4,4.08761]
[1730641187155,8.23061126,2446.6,2446.4,4.08754]
[1730641188565,8.23061126,2446.6,2446.1,4.08799]
[1730641188876,0.7656,2446.5,2446.1,4.08805]
[1730641189164,8.23094467,2446.4,2446.0,4.08817]
[1730641189454,8.23094467,2446.4,2446.0,4.08818]
[1730641190248,0.7656,2446.3,2446.0,4.08818]
[1730641190456,0.7656,2446.3,2445.9,4.08847]
[1730641190457,13.1748,2446.2,2445.9,4.08847]
[1730641190659,15.03935374,2446.2,2445.9,4.08847]
[1730641190958,15.03935374,2446.2,2445.7,4.08873]
[1730641190959,19.12732374,2446.2,2445.7,4.08873]
[1730641191112,0.7656,2446.1,2445.7,4.08873]
[1730641191450,8.1748,2446.0,2445.7,8.17745]
[1730641191614,8.23092527,2446.0,2445.8,4.08863]
[1730641192753,8.23092527,2446.0,2445.9,4.08847]
[1730641198944,9.8056178,2446.0,2445.3,0.7564]
[1730641199163,13.8939278,2446.0,2445.5,4.08914]
[1730641199381,9.8056178,2446.0,2445.5,4.08903]
[1730641199534,13.8940078,2446.0,2445.5,4.08903]
[1730641199868,9.8056178,2446.0,2445.6,4.08897]
[1730641200023,2.29820278,2445.9,2445.6,4.08897]
[1730641200359,8.23071984,2445.8,2445.7,4.0888]
[1730641200543,8.23071984,2445.8,2445.6,4.08888]
[1730641200754,8.23071984,2445.8,2445.7,4.0888]
[1730641202335,8.23071984,2445.8,2445.7,4.6388]
[1730641202542,8.23071984,2445.8,2445.7,5.587202]
[1730641203248,8.23071984,2445.8,2445.7,4.0888]
[1730641205631,8.23071984,2445.8,2445.7,4.6388]
[1730641205834,8.23071984,2445.8,2445.7,8.47696962]
[1730641206044,8.23071984,2445.8,2445.7,8.3952]
[1730641206536,8.1748,2445.8,2445.7,8.3952]
[1730641206875,7.37242032,2445.8,2445.7,12.1357259]
[1730641207054,0.7516,2446.9,2446.2,0.7564]
[1730641207260,0.7516,2446.9,2446.7,4.08705]
[1730641207429,0.04884175,2446.8,2446.7,4.08705]
[1730641208506,0.04884175,2446.8,2446.7,4.63705]
[1730641208684,5.0,2447.0,2446.9,4.0868]
[1730641209554,5.0,2447.0,2446.9,9.265574]
[1730641210697,5.0,2447.0,2446.9,9.285574]
[1730641211060,8.16852,2448.5,2448.0,4.08489]
[1730641211061,5.7516,2448.4,2448.0,4.08489]
[1730641211540,5.7516,2448.4,2447.8,4.0852]
[1730641211812,9.8359,2448.4,2447.8,8.17039]
[1730641212107,2.143615,2448.4,2448.1,4.08478]
[1730641212259,0.7516,2448.4,2448.0,4.08487]
[1730641212461,8.1693,2448.3,2448.2,4.08463]
[1730641213676,8.1693,2448.3,2448.1,4.08471]
[1730641214262,8.1693,2448.3,2447.9,4.08501]
[1730641214761,0.04690952,2448.2,2447.8,0.7564]
[1730641214961,8.9849,2448.1,2447.7,4.0853]
[1730641215187,0.04701072,2448.0,2447.7,4.0853]
[1730641215409,8.1693,2447.9,2447.6,7.08562]
[1730641215615,8.1693,2447.9,2447.6,3.0]
[1730641215794,0.04701072,2447.8,2447.4,7.08585]
[1730641215982,8.1693,2447.7,2447.4,4.08585]
[1730641216380,0.04701072,2447.6,2447.5,4.0858]
[1730641216589,8.21631072,2447.6,2447.5,4.0858]
[1730641216983,8.21631072,2447.6,2447.4,4.08585]
[1730641217532,8.21631072,2447.6,2447.5,4.0858]
[1730641217929,8.21631072,2447.6,2447.4,4.08585]
[1730641218112,8.21631072,2447.6,2447.2,7.08619]
[1730641218113,9.85354179,2447.6,2447.2,4.08619]
[1730641218503,9.85354179,2447.6,2447.3,4.08603]
[1730641219033,9.85354179,2447.6,2447.0,4.08663]
[1730641219239,8.21631072,2447.6,2447.5,4.0858]
[1730641219436,8.21631072,2447.6,2447.3,4.08598]
[1730641219728,8.21631072,2447.6,2447.1,4.08632]
[1730641220288,8.21631072,2447.6,2447.2,4.08628]
[1730641220489,1.32163107,2447.5,2447.2,0.08171992]
[1730641220708,8.1693,2447.4,2447.3,4.08611]
[1730641221029,8.1693,2447.4,2447.1,4.08632]
[1730641221030,8.21601877,2447.4,2447.2,4.08619]
[1730641221234,8.21601877,2447.4,2447.2,4.08628]
[1730641221434,8.21601877,2447.4,2447.3,4.08613]
[1730641221731,8.21601877,2447.4,2447.2,4.08628]
[1730641222105,8.21601877,2447.4,2447.2,8.17249]
[1730641222299,8.21601877,2447.4,2447.2,4.08621]
[1730641222864,8.21601877,2447.4,2447.2,8.17243]
[1730641223132,8.21601877,2447.4,2447.3,4.08613]
[1730641223740,8.21601877,2447.4,2447.3,9.30208098]
[1730641223891,8.21601877,2447.4,2447.3,9.240364]
[1730641224230,8.1693,2447.4,2447.3,9.240364]
[1730641224530,8.214418,2447.4,2447.3,9.230364]
[1730641225200,8.214418,2447.4,2447.3,9.240364]
[1730641226291,0.042498,2447.4,2447.3,9.240364]
[1730641226490,8e-06,2447.4,2447.3,9.240364]
[1730641226707,0.8156,2448.7,2448.3,4.08436]
[1730641226962,1.31159492,2448.7,2448.3,4.08436]
[1730641227259,8.212121,2448.6,2448.3,4.08436]
[1730641227553,8.212121,2448.6,2448.1,4.08469]
[1730641227554,8.212121,2448.6,2448.2,4.08463]
[1730641227757,8.212121,2448.6,2448.1,4.08469]
[1730641228054,12.296171,2448.6,2448.1,4.08469]
[1730641228208,1.36077659,2448.5,2448.1,4.08469]
[1730641228553,8.21223015,2448.4,2448.1,4.08469]
[1730641228910,8.21223015,2448.4,2447.9,7.08501]
[1730641228911,0.8088,2448.3,2447.9,7.08501]
[1730641229211,0.8088,2448.3,2447.7,4.08531]
[1730641229212,0.04390287,2448.2,2447.7,4.08531]
[1730641229452,8.21220287,2448.2,2447.8,3.0]
[1730641229609,1.31055329,2448.1,2447.8,3.0]
[1730641229812,1.31055329,2448.1,2447.7,4.08531]
[1730641230108,8.21220287,2448.0,2447.7,8.17068]
[1730641230377,8.21220287,2448.0,2447.7,8.17069]
[1730641230504,8.21220287,2448.0,2447.6,4.08563]
[1730641230709,8.21220287,2448.0,2447.9,4.08513]
[1730641231151,8.21220287,2448.0,2447.9,4.63513]
[1730641231450,8.21220287,2448.0,2447.9,9.271873]
[1730641232007,8.25506275,2448.0,2447.9,9.271873]
[1730641232206,8.25506275,2448.0,2447.9,8.39983]
[1730641232525,8.25506275,2448.0,2447.9,7.63513]
[1730641232837,8.25506275,2448.0,2447.9,7.08513]
[1730641233346,8.25506275,2448.0,2447.9,7.63513]
[1730641237904,9.06386275,2448.0,2447.9,3.0]
[1730641238078,9.97024903,2448.0,2447.9,3.0]
[1730641239159,9.97024903,2448.0,2447.7,3.0]
[1730641239476,9.97024903,2448.0,2447.7,4.08538]
[1730641240446,9.97024903,2448.0,2447.7,8.17072]
[1730641240648,9.97024903,2448.0,2447.6,4.08561]
[1730641240972,1.4055069,2447.9,2447.6,4.08561]
[1730641241184,8.1683,2447.8,2447.6,4.08561]
[1730641241478,8.25524209,2447.8,2447.6,4.08561]
[1730641242086,8.25524209,2447.8,2447.4,0.55]
[1730641242245,8.25524209,2447.8,2447.4,4.63587]
[1730641242446,0.8088,2447.7,2447.4,4.08587]
[1730641242656,8.1683,2447.6,2447.4,4.08587]
[1730641243056,0.08679784,2447.5,2447.4,4.08587]
[1730641243261,8.25509784,2447.5,2447.4,4.08587]
[1730641243797,8.25509784,2447.5,2447.3,4.08611]
[1730641243944,9.16148762,2447.5,2447.4,4.08596]
[1730641244452,8.25509784,2447.5,2447.4,4.08596]
[1730641245680,8.25509784,2447.5,2447.4,5.42006]
[1730641246270,8.25509784,2447.5,2447.4,8.50177171]
[1730641246592,8.25509784,2447.5,2447.4,8.43006]
[1730641246790,5.97465908,2447.5,2447.4,8.43006]
[1730641246964,5.97465908,2447.5,2447.4,9.682677]
[1730641247355,5.97465908,2447.5,2447.4,9.672677]
[1730641251613,5.97465908,2447.5,2447.4,9.94965733]
[1730641252411,5.97465908,2447.5,2447.4,10.65637869]
[1730641252585,5.97465908,2447.5,2447.4,12.16990719]
[1730641252994,5.88793534,2447.5,2447.4,12.16990719]
[1730641254070,5.88793534,2447.5,2447.4,12.15990719]
[1730641254271,5.88793534,2447.5,2447.4,10.65637869]
[1730641254569,5.88793534,2447.5,2447.4,11.44064104]
[1730641254797,5.88793534,2447.5,2447.4,12.162149]
[1730641255112,5.88793534,2447.5,2447.4,11.10090632]
[1730641255467,5.88793534,2447.5,2447.4,12.16274377]
[1730641255667,5.88793534,2447.5,2447.4,12.16391654]
[1730641256483,5.88793534,2447.5,2447.4,10.12719954]
[1730641256705,5.88793534,2447.5,2447.4,7.91345824]
[1730641256901,6.71003534,2447.5,2447.4,4.80783091]
[1730641257125,6.7939945,2447.5,2447.4,4.36345824]
[1730641257291,6.7939945,2447.5,2447.4,4.08596]
[1730641257491,5.9718945,2447.5,2447.4,4.36369785]
[1730641257717,5.9718945,2447.5,2447.4,6.03721795]
[1730641258032,5.9718945,2447.5,2447.4,6.56329121]
[1730641258326,5.9718945,2447.5,2447.4,9.66892765]
[1730641258327,5.96910061,2447.5,2447.4,9.66892765]
[1730641258496,5.96910061,2447.5,2447.4,9.3094801]
[1730641258700,5.96910061,2447.5,2447.4,9.58719265]
[1730641258894,5.96910061,2447.5,2447.4,7.91367255]
[1730641259826,5.96910061,2447.5,2447.4,7.08596]
[1730641260030,6.78320061,2447.5,2447.4,7.08596]
[1730641260236,6.78320061,2447.5,2447.3,8.17214]
[1730641260640,6.78320061,2447.5,2447.2,4.6362]
[1730641260925,7.46152067,2447.5,2446.9,0.44439188]
[1730641261127,4.08601,2447.4,2447.0,4.36437876]
[1730641261332,0.8141,2447.2,2447.0,4.08663]
[1730641261531,0.8141,2447.2,2447.1,4.08646]
[1730641261747,8.9869,2447.2,2447.1,4.08646]
[1730641262598,8.1728,2447.2,2447.1,4.08646]
[1730641263722,0.8141,2447.1,2446.7,4.08704]
[1730641263901,8.1728,2447.0,2446.8,4.08697]
[1730641264252,8.1728,2447.0,2446.9,4.0868]
[1730641265017,8.1728,2447.0,2446.8,4.08697]
[1730641266462,8.1728,2447.0,2446.9,4.0868]
[1730641266659,8.1728,2447.0,2446.8,4.08697]
[1730641266847,8.1728,2447.0,2446.9,4.0868]
[1730641267022,8.1728,2447.0,2446.8,4.08697]
[1730641267221,8.1728,2447.0,2446.8,8.17386]
[1730641267417,8.1728,2447.0,2446.8,4.08689]
[1730641267725,8.1728,2447.0,2446.9,4.6368]
[1730641270060,8.1728,2447.0,2446.8,4.08689]
[1730641272889,4.90091,2446.9,2446.4,3.0]
[1730641273037,8.1728,2446.8,2446.4,7.08756]
[1730641273245,8.1728,2446.8,2446.5,4.08736]
[1730641273568,8.1728,2446.8,2446.6,3.0]
[1730641273569,0.08060759,2446.7,2446.6,3.0]
[1730641273875,8.25340759,2446.7,2446.6,3.0]
[1730641274176,8.25340759,2446.7,2446.6,7.0873]
[1730641275135,8.25340759,2446.7,2446.6,3.0]
[1730641275510,8.25340759,2446.7,2446.6,7.0873]
[1730641275628,8.25340759,2446.7,2446.6,8.754766]
[1730641278150,8.1728,2446.7,2446.6,8.754766]
[1730641278337,8.25338029,2446.7,2446.6,8.754766]
[1730641278733,8.25338029,2446.7,2446.6,7.6373]
[1730641279969,8.1728,2446.7,2446.6,7.6373]
[1730641280594,8.25338029,2446.7,2446.6,7.6373]
[1730641286181,8.25338029,2446.7,2446.6,8.4833]
[1730641286809,8.25338029,2446.7,2446.6,7.0873]
[1730641287499,9.08748029,2446.7,2446.6,7.0873]
[1730641288313,8.25338029,2446.7,2446.6,7.0873]
[1730641289320,8.25338029,2446.7,2446.6,7.6373]
[1730641290217,8.25338029,2446.7,2446.6,8.809766]
[1730641292093,8.25338029,2446.7,2446.6,9.640766]
[1730641292295,8.25338029,2446.7,2446.6,9.91774288]
[1730641293192,8.25338029,2446.7,2446.6,9.650766]
[1730641293393,7.3203678,2446.7,2446.6,11.41758041]
[1730641294181,7.3203678,2446.7,2446.6,10.35741557]
[1730641294382,7.3203678,2446.7,2446.6,11.41785257]
[1730641294728,7.3203678,2446.7,2446.6,12.13828392]
[1730641295083,7.3203678,2446.7,2446.6,11.07784692]
[1730641295280,7.3203678,2446.7,2446.6,12.13854229]
[1730641295782,7.3203678,2446.7,2446.6,12.13903843]
[1730641297326,7.3203678,2446.7,2446.6,12.13959221]
[1730641297482,7.3203678,2446.7,2446.6,10.51833378]
[1730641297684,7.3203678,2446.7,2446.6,7.36438415]
[1730641298131,7.3203678,2446.7,2446.6,7.0873]
[1730641298284,7.3203678,2446.7,2446.6,7.36459914]
[1730641299033,7.3203678,2446.7,2446.6,7.91459914]
[1730641299718,7.39855148,2446.7,2446.6,7.91459914]
[1730641299918,8.24045148,2446.7,2446.6,7.36459914]
[1730641300328,8.24045148,2446.7,2446.6,7.0873]
[1730641300535,8.24045148,2446.7,2446.6,7.36482159]
[1730641301120,7.39855148,2446.7,2446.6,7.91482159]
[1730641302730,7.39855148,2446.7,2446.6,10.13168586]
[1730641302939,7.39855148,2446.7,2446.6,11.64022311]
[1730641303098,7.3203678,2446.7,2446.6,13.02656921]
[1730641303440,7.39838328,2446.7,2446.6,13.88289582]
[1730641303846,7.39838328,2446.7,2446.6,15.73889033]
[1730641304202,7.3203678,2446.7,2446.6,13.89396511]
[1730641304540,7.3203678,2446.7,2446.6,13.89395415]
[1730641304744,7.3203678,2446.7,2446.6,13.89377543]
[1730641305336,7.3203678,2446.7,2446.6,13.88377543]
[1730641305580,7.3203678,2446.7,2446.6,10.99423818]
[1730641305739,7.3203678,2446.7,2446.6,8.51807139]
[1730641306033,8.2236678,2446.7,2446.6,8.51807139]
[1730641306433,8.30167156,2446.7,2446.6,8.51807139]
[1730641306840,8.30167156,2446.7,2446.6,7.80911423]
[1730641307537,7.39837156,2446.7,2446.6,11.46275042]
[1730641307907,7.3203678,2446.7,2446.6,11.46275042]
[1730641308233,7.39837156,2446.7,2446.6,12.01853934]
[1730641310267,7.39837156,2446.7,2446.6,11.46275042]
[1730641311034,7.3203678,2446.7,2446.6,11.46275042]
[1730641311534,7.39830899,2446.7,2446.6,12.01758218]
[1730641311959,7.39830899,2446.7,2446.6,10.13178578]
[1730641312183,7.39830899,2446.7,2446.6,9.06818285]
[1730641312867,7.39830899,2446.7,2446.6,9.06764147]
[1730641313845,7.39830899,2446.7,2446.6,9.06766762]
[1730641316277,7.39830899,2446.7,2446.6,8.34639477]
[1730641316447,7.39830899,2446.7,2446.6,9.06768638]
[1730641318139,7.3203678,2446.7,2446.6,9.06768638]
[1730641318338,7.39830899,2446.7,2446.6,9.06768638]
[1730641318575,7.39830899,2446.7,2446.6,10.13139801]
[1730641318739,7.39830899,2446.7,2446.6,9.06771417]
[1730641319171,7.39830899,2446.7,2446.6,10.13140414]
[1730641319481,7.39830899,2446.7,2446.6,9.06771417]
[1730641319676,7.39830899,2446.7,2446.6,10.13149331]
[1730641320178,7.39830899,2446.7,2446.6,9.06771417]
[1730641320393,7.39830899,2446.7,2446.6,10.13149769]
[1730641320553,8.28410899,2446.7,2446.6,5.51771417]
[1730641320881,9.11251989,2446.7,2446.6,4.80859161]
[1730641321056,8.28410899,2446.7,2446.6,4.36471498]
[1730641321675,7.39830899,2446.7,2446.6,5.51793848]
[1730641321885,7.39830899,2446.7,2446.6,5.51793687]
[1730641322091,7.39830899,2446.7,2446.6,6.06793687]
[1730641322461,7.39830899,2446.7,2446.6,5.34657586]
[1730641322677,7.39830899,2446.7,2446.6,5.79052014]
[1730641322845,7.39830899,2446.7,2446.6,10.19697109]
[1730641323043,7.39830899,2446.7,2446.6,11.26090871]
[1730641323270,7.3203678,2446.7,2446.6,11.26089732]
[1730641323486,7.3203678,2446.7,2446.6,11.81580484]
[1730641323699,7.39827769,2446.7,2446.6,12.67318978]
[1730641325352,7.39827769,2446.7,2446.6,11.81580484]
[1730641326194,7.39827769,2446.7,2446.6,11.09442515]
[1730641326506,7.39827769,2446.7,2446.6,10.53951688]
[1730641327552,7.39827769,2446.7,2446.6,11.81577912]
[1730641328252,7.39827769,2446.7,2446.6,11.81581704]
[1730641328558,7.39827769,2446.7,2446.6,7.68679759]
[1730641328768,7.39827769,2446.7,2446.6,6.07287913]
[1730641328981,7.39827769,2446.7,2446.6,5.51795363]
[1730641329289,7.39827769,2446.7,2446.6,6.5819782]
[1730641329866,7.39827769,2446.7,2446.6,9.58199474]
[1730641330445,7.39827769,2446.7,2446.6,9.5820278]
[1730641330648,7.39827769,2446.7,2446.6,10.5206309]
[1730641330884,7.39827769,2446.7,2446.6,11.4298783]
[1730641331091,7.39827769,2446.7,2446.6,11.54385197]
[1730641331296,7.39827769,2446.7,2446.6,10.26802327]
[1730641331455,7.39827769,2446.7,2446.6,11.54318033]
[1730641333166,8.28407769,2446.7,2446.6,10.13136686]
[1730641333365,9.11248546,2446.7,2446.6,6.06736386]
[1730641333590,8.28407769,2446.7,2446.6,5.35802853]
[1730641333806,8.28407769,2446.7,2446.6,6.06741919]
[1730641334176,7.39827769,2446.7,2446.6,7.13147975]
[1730641334681,7.39827769,2446.7,2446.6,10.13147975]
[1730641334894,7.39827769,2446.7,2446.6,10.68596576]
[1730641335210,7.39827769,2446.7,2446.6,10.68593158]
[1730641335403,7.39827769,2446.7,2446.6,8.91248036]
[1730641335651,7.39827769,2446.7,2446.6,10.13151513]
[1730641335814,7.39827769,2446.7,2446.6,10.68598509]
[1730641336012,7.39827769,2446.7,2446.6,10.13151513]
[1730641336309,7.39827769,2446.7,2446.6,10.68598204]
[1730641336606,7.39827769,2446.7,2446.6,10.13151513]
[1730641338281,7.39827769,2446.7,2446.6,10.1315464]
[1730641338618,7.39827769,2446.7,2446.6,9.41087208]
[1730641338785,7.39827769,2446.7,2446.6,10.13163198]
[1730641338971,7.39827769,2446.7,2446.6,8.34669464]
[1730641339168,7.39827769,2446.7,2446.6,10.13159573]
[1730641339627,7.39827769,2446.7,2446.6,10.13172239]
[1730641340006,7.39827769,2446.7,2446.6,8.35805272]
[1730641340210,7.39827769,2446.7,2446.6,10.13183515]
[1730641340411,8.26187769,2446.7,2446.6,9.06756569]
[1730641340733,9.08806546,2446.7,2446.6,0.72075272]
[1730641340888,9.08806546,2446.7,2446.6,0.2772077]
[1730641341221,9.08806546,2446.7,2446.2,4.08786]
[1730641341222,0.8636,2446.6,2446.2,4.08786]
[1730641341432,12.31159546,2446.7,2446.0,1.41196464]
[1730641341433,0.8636,2446.4,2446.3,0.7209563]
[1730641341590,8.1839678,2446.4,2446.3,0.27728347]
[1730641341786,9.41888753,2446.4,2446.3,0.27728347]
[1730641342008,9.49662526,2446.4,2446.3,0.27728347]
[1730641342424,9.49662526,2446.4,2445.9,4.08839]
[1730641342425,0.8636,2446.3,2445.9,4.08839]
[1730641342602,12.72065526,2446.4,2445.9,4.08839]
[1730641342603,0.8636,2446.1,2445.9,0.44364515]
[1730641342814,7.39531265,2446.0,2445.8,0.44364515]
[1730641343018,0.8636,2445.9,2445.7,4.08872]
[1730641343310,7.3203678,2445.8,2445.7,4.08872]
[1730641343627,7.39531378,2445.8,2445.7,4.36578269]
[1730641344923,7.39531378,2445.8,2445.7,0.27706269]
[1730641345135,7.39531378,2445.8,2445.6,0.27706269]
[1730641345294,8.48340636,2445.8,2445.6,0.17706269]
[1730641346013,8.48340636,2445.8,2445.6,4.26596269]
[1730641346336,8.48340636,2445.8,2445.7,4.0888]
[1730641346484,7.39531378,2445.8,2445.7,4.0888]
[1730641347408,0.8636,2445.7,2445.4,0.55]
[1730641347720,7.39505472,2445.6,2445.5,4.08905]
[1730641348443,7.39505472,2445.6,2445.5,3.93905]
[1730641349049,7.39505472,2445.6,2445.5,3.68905]
[1730641349647,8.22795472,2445.6,2445.2,4.08962]
[1730641349829,8.22795472,2445.6,2445.2,8.17916]
[1730641350039,8.22795472,2445.6,2445.2,4.08954]
[1730641350603,12.31693472,2445.6,2445.2,4.08954]
[1730641350839,8.22795472,2445.6,2445.2,4.08954]
[1730641351148,9.45964419,2445.6,2445.2,4.08954]
[1730641351648,13.54865419,2445.6,2445.1,4.0898]
[1730641351811,9.45964419,2445.6,2445.2,4.08963]
[1730641352012,9.45964419,2445.6,2445.2,4.08956]
[1730641352242,9.45964419,2445.6,2445.3,4.08945]
[1730641352749,8.22795472,2445.6,2445.4,4.08923]
[1730641354154,8.22795472,2445.6,2445.4,4.63915]
[1730641354319,8.22795472,2445.6,2445.5,4.08914]
[1730641355415,7.39505472,2445.6,2445.5,4.08914]
[1730641355665,7.39505472,2445.6,2445.5,4.961969]
[1730641356032,7.39505472,2445.6,2445.5,4.08914]
[1730641356617,7.39505472,2445.6,2445.5,4.63914]
[1730641357764,0.8329,2445.5,2445.3,4.08947]
[1730641357964,7.3203678,2445.4,2445.3,4.63947]
[1730641358256,7.39489765,2445.4,2445.3,4.63947]
[1730641359431,7.39489765,2445.4,2445.3,6.691071]
[1730641359763,7.39489765,2445.4,2445.3,9.691071]
[1730641365879,6.54193966,2445.4,2445.3,9.691071]
[1730641367593,5.02569195,2445.4,2445.3,9.711071]
[1730641367743,5.0,2446.8,2446.3,4.0878]
[1730641367744,0.8779,2446.4,2446.3,4.0878]
[1730641367947,0.02,2447.2,2445.4,1.47201072]
[1730641367948,0.8779,2446.7,2446.6,4.0873]
[1730641368240,0.8779,2447.2,2446.7,4.087]
[1730641368465,4.9643,2447.2,2446.6,4.6373]
[1730641368650,0.8779,2447.0,2446.6,4.6373]
[1730641368840,8.1736,2446.9,2446.6,4.6373]
[1730641369048,8.1736,2446.9,2446.7,4.08701]
[1730641369369,8.1736,2446.9,2446.7,4.63701]
[1730641369895,8.1736,2446.9,2446.7,0.55]
[1730641370105,9.1692544,2446.9,2446.7,4.63704]
[1730641370404,9.1692544,2446.9,2446.7,0.55]
[1730641370566,9.1692544,2446.9,2446.8,4.08697]
[1730641370900,8.1736,2446.9,2446.8,4.63697]
[1730641371261,8.1736,2446.9,2446.8,7.63697]
[1730641372687,8.1736,2446.9,2446.8,8.53087]
[1730641375793,8.1736,2446.9,2446.8,7.63697]
[1730641375950,9.0515,2446.9,2446.8,7.08697]
[1730641376156,10.02422627,2446.9,2446.5,4.08734]
[1730641376589,10.02422627,2446.9,2446.5,8.17468]
[1730641376804,10.02422627,2446.9,2446.5,4.08734]
[1730641376960,0.8779,2446.8,2446.5,8.17472]
[1730641377292,8.24122333,2446.7,2446.6,4.08726]
[1730641378402,8.24122333,2446.7,2446.6,4.63726]
[1730641378756,8.24122333,2446.7,2446.6,0.55]
[1730641380217,8.24122333,2446.7,2446.6,4.6373]
[1730641381680,8.24122333,2446.7,2446.6,0.55]
[1730641382706,9.24365066,2446.7,2446.5,4.08734]
[1730641383079,9.24365066,2446.7,2446.4,0.55]
[1730641383275,0.8779,2446.5,2445.9,8.17669]
[1730641383481,0.8779,2446.3,2446.0,4.08821]
[1730641383699,8.1736,2446.2,2446.0,4.08821]
[1730641383901,8.1736,2446.2,2445.9,8.17669]
[1730641384124,0.06748602,2446.1,2445.9,4.08832]
[1730641384283,0.06748602,2446.1,2445.7,4.08868]
[1730641384519,8.1736,2446.0,2445.7,4.08868]
[1730641384706,8.1736,2446.0,2445.7,8.1774]
[1730641384910,0.8779,2445.9,2445.7,4.08868]
[1730641385134,1.85053602,2445.9,2445.5,4.94641494]
[1730641385526,1.85053602,2445.9,2445.5,9.03546494]
[1730641385736,8.1736,2445.8,2445.5,9.03546494]
[1730641386123,0.06730938,2445.7,2445.5,9.03546494]
[1730641386339,8.1736,2445.6,2445.5,12.03546494]
[1730641386838,8.24090938,2445.6,2445.5,8.49641494]
[1730641387355,8.24090938,2445.6,2445.5,7.63903]
[1730641388055,8.1736,2445.6,2445.5,7.63903]
[1730641388453,8.24078375,2445.6,2445.5,7.63903]
[1730641389612,8.24078375,2445.6,2445.5,8.811863]
[1730641389832,8.24078375,2445.6,2445.5,9.705763]
[1730641391256,8.24078375,2445.6,2445.5,9.715763]
[1730641398283,8.24078375,2445.6,2445.5,9.9916571]
[1730641398783,8.24078375,2445.6,2445.5,9.715763]
[1730641398984,8.1736,2445.6,2445.5,10.4330897]
[1730641399157,8.1736,2445.6,2445.5,11.15041548]
[1730641399359,8.24071314,2445.6,2445.5,10.70897937]
[1730641399579,8.24071314,2445.6,2445.5,11.15049127]
[1730641399785,0.8957,2446.7,2446.4,3.55]
[1730641399959,0.8957,2446.7,2446.6,4.6373]
[1730641401755,0.8957,2446.7,2446.5,3.0]
[1730641401972,0.8957,2446.7,2446.4,4.08762]
[1730641402208,0.8957,2446.7,2446.4,4.08752]
[1730641402389,0.8957,2446.7,2446.5,4.08736]